bitfinex-derivatives/quotes_SOLF0:USTF0_20240926
["timestamp","ask_amount","ask_price","bid_price","bid_amount"]
[1727365102183,3.1746,157.48,157.43,3.1754]
[1727365102378,3.1746,157.48,157.41,35.71]
[1727365102587,57.5277,157.55,157.38,3.16775789]
[1727365102781,1.2839,157.47,157.35,35.71]
[1727365103082,37.0266,157.46,157.32,35.71]
[1727365103273,35.71,157.44,157.32,35.71]
[1727365103476,35.71,157.44,157.31,76.26]
[1727365103678,35.71,157.44,157.34,3.1772]
[1727365103874,35.71,157.41,157.31,76.26]
[1727365104593,35.71,157.36,157.24,38.83778961]
[1727365104777,3.1776,157.33,157.28,3.1784]
[1727365104975,35.71,157.34,157.22,35.71]
[1727365105174,3.8602,157.35,157.25,35.71]
[1727365105482,3.8602,157.35,157.27,35.71]
[1727365105783,3.1776,157.33,157.24,38.96166876]
[1727365105982,3.1776,157.33,157.24,35.71]
[1727365106283,3.1755,157.43,157.32,35.71]
[1727365106485,3.9081,157.44,157.32,35.71]
[1727365106875,3.1767,157.37,157.32,3.1775]
[1727365107081,3.1767,157.37,157.24,38.96194764]
[1727365107082,35.71,157.4,157.27,35.71]
[1727365107482,3.1772,157.35,157.3,3.178]
[1727365107784,3.1772,157.35,157.27,35.71]
[1727365107785,35.71,157.4,157.27,35.71]
[1727365107987,35.71,157.4,157.3,3.1781]
[1727365108178,35.71,157.4,157.27,35.71]
[1727365108376,35.71,157.43,157.29,35.71]
[1727365108887,35.71,157.4,157.27,35.71]
[1727365109083,3.1771,157.36,157.31,3.1778]
[1727365109286,3.1771,157.36,157.27,38.81192132]
[1727365109486,35.71,157.4,157.27,35.71]
[1727365109689,3.1773,157.35,157.3,3.1781]
[1727365109880,35.71,157.37,157.24,35.71]
[1727365110086,3.8182,157.34,157.24,35.71]
[1727365110688,3.1777,157.33,157.28,3.1784]
[1727365110987,3.1777,157.33,157.24,35.71]
[1727365111179,35.71,157.31,157.18,35.71]
[1727365111386,35.71,157.31,157.18,38.882919]
[1727365111797,35.71,157.31,157.22,3.1796]
[1727365111992,35.71,157.33,157.2,35.71]
[1727365112290,3.1779,157.32,157.2,35.71]
[1727365112888,3.178,157.31,157.2,35.71]
[1727365113089,35.71,157.33,157.2,35.71]
[1727365113494,3.1781,157.3,157.2,35.71]
[1727365113689,35.71,157.33,157.2,35.71]
[1727365114187,2.5631,157.34,157.23,35.71]
[1727365114585,2.5631,157.34,157.29,3.1781]
[1727365114983,2.5631,157.34,157.26,35.71]
[1727365115183,1.3857,157.39,157.26,35.71]
[1727365115688,1.3857,157.39,157.28,35.71]
[1727365115989,3.1767,157.38,157.33,3.1775]
[1727365116185,1.3857,157.39,157.28,35.71]
[1727365116384,1.3857,157.39,157.27,3.15396592]
[1727365116385,37.0957,157.39,157.27,3.15396592]
[1727365116585,37.0957,157.39,157.32,3.1776]
[1727365116794,37.0957,157.39,157.26,35.71]
[1727365117084,3.1774,157.34,157.29,3.1783]
[1727365117485,2.5972,157.35,157.29,3.1783]
[1727365117895,3.1776,157.33,157.29,3.1783]
[1727365118093,35.71,157.33,157.21,35.71]
[1727365118288,35.71,157.33,157.23,35.71]
[1727365118495,2.5972,157.35,157.28,35.71]
[1727365118693,2.5972,157.35,157.19,79.52740264]
[1727365118889,1.3857,157.39,157.27,35.71]
[1727365119091,1.3857,157.39,157.33,3.1773]
[1727365119397,4.5622,157.39,157.29,35.71]
[1727365119592,2.5972,157.44,157.29,35.71]
[1727365119895,2.5972,157.44,157.32,35.71]
[1727365119896,1.3584,157.43,157.32,35.71]
[1727365120095,3.1762,157.4,157.35,3.177]
[1727365120496,3.1762,157.4,157.32,35.71]
[1727365120692,3.1762,157.4,157.31,3.13605416]
[1727365120693,35.71,157.42,157.29,35.71]
[1727365120886,35.71,157.42,157.29,38.93376706]
[1727365121598,35.71,157.4,157.27,35.71]
[1727365122798,3.1773,157.35,157.27,35.71]
[1727365123187,35.71,157.4,157.27,38.89225119]
[1727365123391,3.1771,157.35,157.3,3.1781]
[1727365124397,3.1769,157.36,157.31,3.1779]
[1727365124697,35.71,157.4,157.31,3.1779]
[1727365125595,3.1771,157.36,157.31,3.1779]
[1727365125892,35.71,157.4,157.3,3.178]
[1727365126496,3.1762,157.4,157.29,35.71]
[1727365126704,1.3584,157.43,157.32,35.71]
[1727365126891,1.3584,157.43,157.36,35.71]
[1727365127096,2.5972,157.44,157.36,35.71]
[1727365127899,2.5972,157.44,157.36,38.91088544]
[1727365128101,5.7726,157.44,157.39,3.1762]
[1727365128301,5.7726,157.44,157.36,38.91088544]
[1727365128497,1.3635,157.48,157.39,35.71]
[1727365128703,1.3635,157.48,157.44,3.1753]
[1727365129003,1.3635,157.48,157.39,35.71]
[1727365129503,1.3635,157.48,157.41,3.1758]
[1727365129702,1.3635,157.48,157.39,35.71]
[1727365130104,1.3635,157.48,157.37,38.82893081]
[1727365130301,1.3635,157.48,157.37,35.71]
[1727365130601,35.71,157.47,157.34,3.13068238]
[1727365130797,35.71,157.47,157.33,35.71]
[1727365130999,1.3635,157.48,157.36,35.71]
[1727365131201,1.3635,157.48,157.38,35.71]
[1727365131499,3.1753,157.45,157.39,3.1761]
[1727365131703,1.3635,157.48,157.36,35.71]
[1727365131999,4.538,157.48,157.42,3.1755]
[1727365132302,4.538,157.48,157.4,35.71]
[1727365132303,1.3635,157.48,157.4,35.71]
[1727365133197,3.1753,157.45,157.4,35.71]
[1727365133799,3.1749,157.46,157.4,35.71]
[1727365134000,3.1749,157.46,157.38,35.71]
[1727365134199,1.3635,157.48,157.42,3.1756]
[1727365134398,1.3635,157.48,157.38,35.71]
[1727365134796,3.1749,157.46,157.41,3.1758]
[1727365135398,1.3635,157.48,157.41,3.1758]
[1727365135604,3.1751,157.45,157.4,3.1761]
[1727365136201,3.175,157.46,157.41,3.1758]
[1727365137201,3.175,157.46,157.38,35.71]
[1727365137403,2.577,157.5,157.4,35.71]
[1727365137613,2.577,157.5,157.42,35.71]
[1727365137807,2.577,157.5,157.45,3.1751]
[1727365137997,35.71,157.56,157.42,38.82449037]
[1727365138502,3.174,157.51,157.42,25.05449037]
[1727365138705,21.94,157.55,157.42,25.05449037]
[1727365138897,25.9925,157.58,157.45,21.94]
[1727365139098,25.9925,157.58,157.42,21.94]
[1727365139099,21.94,157.55,157.42,21.94]
[1727365139299,21.94,157.55,157.42,25.07814645]
[1727365139701,3.1738,157.52,157.42,25.07814645]
[1727365139906,21.94,157.55,157.42,25.07814645]
[1727365140306,3.1739,157.51,157.47,3.1747]
[1727365140607,3.1739,157.51,157.42,25.07814645]
[1727365140907,3.1739,157.51,157.46,3.1747]
[1727365141704,21.94,157.55,157.46,3.1747]
[1727365142004,21.94,157.55,157.42,25.07814645]
[1727365142201,3.1741,157.5,157.42,25.07814645]
[1727365142413,21.94,157.51,157.39,21.94]
[1727365142609,21.94,157.51,157.41,3.1759]
[1727365142908,2.6685,157.5,157.37,21.94]
[1727365143114,4.0391,157.5,157.37,21.94]
[1727365143613,4.0391,157.5,157.4,3.1761]
[1727365143806,3.1753,157.44,157.4,3.1761]
[1727365144204,21.94,157.48,157.39,3.1762]
[1727365144410,21.94,157.45,157.32,25.17330253]
[1727365144611,21.94,157.45,157.34,21.94]
[1727365145115,21.94,157.45,157.34,25.16181071]
[1727365146020,21.94,157.45,157.38,3.1763]
[1727365146704,21.94,157.43,157.34,3.22181071]
[1727365146910,21.94,157.43,157.32,21.94]
[1727365147309,3.1763,157.39,157.35,3.177]
[1727365148213,25.08208336,157.43,157.32,25.16879876]
[1727365148413,3.9598,157.42,157.32,25.16879876]
[1727365148813,21.94,157.4,157.32,3.22879876]
[1727365149014,21.94,157.4,157.26,21.94]
[1727365149910,3.1776,157.33,157.26,21.94]
[1727365150113,21.94,157.4,157.26,21.94]
[1727365150509,3.9598,157.42,157.32,21.94]
[1727365150816,2.6674,157.42,157.32,25.10047359]
[1727365151210,21.94,157.46,157.34,21.94]
[1727365151607,3.1763,157.4,157.34,21.94]
[1727365151816,21.94,157.46,157.34,21.94]
[1727365152016,3.1768,157.37,157.34,3.10550448]
[1727365152212,21.94,157.46,157.26,9.1690891]
[1727365152418,21.94,157.43,157.29,21.94]
[1727365152623,25.07441801,157.43,157.3,3.178]
[1727365152911,25.07441801,157.43,157.29,21.94]
[1727365153111,3.1773,157.34,157.3,3.178]
[1727365153313,3.1773,157.34,157.29,21.94]
[1727365153718,3.1773,157.34,157.3,3.178]
[1727365153919,21.94,157.41,157.29,21.94]
[1727365154119,21.94,157.41,157.28,3.1784]
[1727365154418,3.1778,157.32,157.28,3.1784]
[1727365154719,6.3515,157.42,156.95,222.8414]
[1727365154720,133.9952309,157.06,156.95,222.8414]
[1727365154920,133.9952309,157.06,156.77,23.44005289]
[1727365154921,70.49640639,157.15,156.96,5.75705711]
[1727365155112,70.49640639,157.15,156.91,21.94]
[1727365155308,3.30305097,157.31,157.02,21.94]
[1727365155309,2.3259,157.31,157.02,21.94]
[1727365155510,21.94,157.24,157.05,21.94]
[1727365155711,2.3259,157.31,157.03,77.5626]
[1727365155712,0.97894563,157.3,157.03,77.5626]
[1727365155916,21.94,157.16,157.04,1.3315]
[1727365156318,35.74,157.15,157.04,1.3315]
[1727365156917,35.74,157.12,157.04,1.3315]
[1727365157113,35.74,157.16,157.04,1.3315]
[1727365157314,3.1812,157.15,157.04,1.3315]
[1727365157520,35.74,157.16,157.04,1.3315]
[1727365157818,35.74,157.16,157.05,3.1831]
[1727365158018,35.74,157.16,157.04,1.3315]
[1727365159222,35.74,157.24,157.04,37.0715]
[1727365159223,35.74,157.19,157.04,37.0715]
[1727365159425,35.74,157.19,157.04,1.3315]
[1727365159725,35.74,157.16,157.04,1.3315]
[1727365160421,35.74,157.17,157.04,1.3315]
[1727365161219,35.74,157.17,157.06,3.1828]
[1727365161522,35.74,157.24,157.04,1.3315]
[1727365161523,35.74,157.14,157.04,1.3315]
[1727365161718,35.74,157.12,157.04,1.3315]
[1727365162317,35.74,157.14,157.04,1.3315]
[1727365162823,35.74,157.14,157.05,3.1832]
[1727365163019,35.74,157.14,157.04,1.3315]
[1727365163523,35.74,157.14,157.04,4.5147]
[1727365163524,3.1817,157.13,157.04,4.5147]
[1727365163924,35.74,157.14,157.04,4.5147]
[1727365164328,38.9214,157.14,157.05,3.1831]
[1727365164527,38.9214,157.14,157.04,1.3315]
[1727365164528,35.74,157.14,157.04,1.3315]
[1727365164725,35.74,157.11,157.04,1.3315]
[1727365164920,76.32,157.29,157.04,1.3315]
[1727365164921,76.32,157.29,157.04,0.66766819]
[1727365165130,35.74,157.17,157.05,1.3749]
[1727365166924,38.9208,157.17,157.08,3.1825]
[1727365167332,35.74,157.17,157.08,3.1825]
[1727365167724,35.74,157.17,157.09,3.1823]
[1727365168028,79.42551655,157.29,157.05,1.3749]
[1727365168029,35.74,157.23,157.08,35.74]
[1727365168228,35.74,157.25,157.11,35.74]
[1727365168423,35.74,157.25,157.13,35.74]
[1727365168625,35.74,157.25,157.14,1.3075]
[1727365168829,35.74,157.25,157.17,3.1807]
[1727365168830,38.9192,157.25,157.17,3.1807]
[1727365169036,38.9192,157.25,157.14,1.3075]
[1727365169330,38.9192,157.25,157.15,3.18372778]
[1727365169530,38.9192,157.25,157.17,3.1807]
[1727365169531,35.74,157.25,157.17,3.1807]
[1727365169737,35.74,157.25,157.14,4.42503272]
[1727365169738,3.1795,157.23,157.14,1.3075]
[1727365170733,35.74,157.22,157.14,1.3075]
[1727365171132,35.74,157.22,157.18,3.1805]
[1727365171333,35.74,157.25,157.14,1.3075]
[1727365173329,3.1797,157.23,157.16,3.1808]
[1727365173636,0.667,157.3,157.14,1.3075]
[1727365173637,35.74,157.22,157.14,1.3075]
[1727365174139,1.88639694,157.65,157.24,19.08]
[1727365174335,28.74,157.61,157.26,19.08]
[1727365174534,1.9311,157.64,157.27,1.3287]
[1727365174734,1.9311,157.64,157.33,35.74]
[1727365174735,35.74,157.48,157.33,35.74]
[1727365175130,35.74,157.48,157.27,1.3287]
[1727365175131,0.6665,157.54,157.4,35.74]
[1727365175326,35.74,157.53,157.37,35.74]
[1727365175527,1.2681,157.52,157.35,35.74]
[1727365175730,35.74,157.5,157.35,35.74]
[1727365175937,35.74,157.5,157.31,35.74]
[1727365175938,35.74,157.43,157.29,35.74]
[1727365176128,3.1759,157.41,157.31,3.1778]
[1727365176328,3.18876019,157.46,157.29,35.74]
[1727365176531,35.74,157.43,157.29,35.74]
[1727365177039,35.74,157.42,157.29,35.74]
[1727365177831,35.74,157.42,157.07,48.74297957]
[1727365177832,79.60666823,157.48,157.07,42.37757957]
[1727365178038,35.74,157.42,157.27,35.74]
[1727365178237,35.74,157.42,157.23,38.3016]
[1727365178238,1.3652,157.41,157.23,2.5616]
[1727365178537,3.1779,157.31,157.24,35.74]
[1727365178933,3.1782,157.3,157.24,35.74]
[1727365179129,35.74,157.38,157.24,35.74]
[1727365179330,3.1772,157.35,157.26,35.74]
[1727365179532,2.025,157.41,157.26,35.74]
[1727365180236,35.74,157.39,157.26,35.74]
[1727365181329,35.74,157.36,157.24,35.74]
[1727365181535,35.74,157.33,157.23,1.3013]
[1727365181733,35.74,157.33,157.21,35.74]
[1727365181936,35.74,157.31,157.18,36.9971]
[1727365182130,1.3652,157.41,157.23,35.74]
[1727365182335,35.74,157.39,157.24,3.1793]
[1727365182533,35.74,157.36,157.23,35.74]
[1727365182836,3.1784,157.29,157.22,3.1797]
[1727365183135,3.1784,157.29,157.2,35.74]
[1727365183136,35.74,157.34,157.2,35.74]
[1727365183830,3.1786,157.28,157.2,35.74]
[1727365184131,35.74,157.34,157.2,35.74]
[1727365184343,3.1787,157.28,157.2,38.92]
[1727365184640,35.74,157.34,157.2,38.92]
[1727365184943,35.74,157.34,157.2,35.74]
[1727365185839,35.74,157.34,157.2,38.9201]
[1727365186038,35.74,157.34,157.2,35.74]
[1727365186235,3.1784,157.29,157.2,35.74]
[1727365186538,2.95703335,157.29,157.2,35.74]
[1727365186740,35.74,157.34,157.21,3.1797]
[1727365187333,3.1787,157.28,157.21,3.1797]
[1727365187535,35.74,157.34,157.21,3.1797]
[1727365187737,35.74,157.34,157.2,35.74]
[1727365187938,3.1787,157.28,157.2,35.74]
[1727365188137,35.74,157.34,157.21,3.1799]
[1727365188437,3.1785,157.29,157.2,35.74]
[1727365188638,3.1785,157.29,157.22,3.1796]
[1727365188835,3.1781,157.3,157.23,35.74]
[1727365189335,35.74,157.34,157.23,35.74]
[1727365189938,3.1782,157.3,157.24,3.1793]
[1727365190335,35.74,157.39,157.25,38.86389811]
[1727365190536,35.74,157.39,157.09,9.53120605]
[1727365190537,35.74,157.32,157.09,3.16680605]
[1727365190737,1.9238,157.31,157.1,2.6136]
[1727365190937,35.74,157.23,157.1,2.6136]
[1727365191936,35.74,157.2,157.1,5.84940653]
[1727365192137,35.74,157.2,157.1,2.6136]
[1727365192738,3.1802,157.2,157.1,2.6136]
[1727365192937,35.74,157.23,157.11,35.74]
[1727365193341,35.74,157.23,157.1,2.6136]
[1727365193742,24.1016576,157.31,157.13,3.1815]
[1727365193743,38.9203,157.2,157.13,3.1815]
[1727365193936,35.74,157.24,157.11,35.74]
[1727365194137,95.38,157.47,157.17,35.74]
[1727365194345,36.4,157.3,157.17,35.74]
[1727365194543,36.4,157.3,157.15,35.74]
[1727365194544,35.74,157.28,157.15,35.74]
[1727365194745,36.4,157.3,157.11,1.346]
[1727365194746,35.74,157.25,157.12,35.74]
[1727365195542,35.74,157.27,157.12,38.91742182]
[1727365195748,36.4,157.3,157.16,35.74]
[1727365196241,36.4,157.3,157.18,35.74]
[1727365197446,36.4,157.3,157.11,3.19269329]
[1727365197655,36.4,157.3,157.16,35.74]
[1727365198244,3.1796,157.23,157.17,3.1806]
[1727365198449,36.4,157.3,157.13,35.74]
[1727365198450,35.74,157.28,157.13,35.74]
[1727365198946,35.74,157.34,157.19,35.74]
[1727365199147,35.74,157.31,157.19,35.74]
[1727365199349,1.2543,157.33,157.19,35.74]
[1727365200240,1.2543,157.33,157.19,38.91704752]
[1727365200550,35.74,157.36,157.24,35.74]
[1727365200741,36.9943,157.39,157.27,35.74]
[1727365201146,1.2543,157.39,157.27,35.74]
[1727365201345,1.2543,157.39,157.3,35.74]
[1727365201651,35.74,157.44,157.32,35.74]
[1727365201856,37.0381,157.47,157.34,35.74]
[1727365202656,37.0381,157.47,157.33,3.13443247]
[1727365202850,37.0381,157.47,157.32,1.3453]
[1727365203350,3.1764,157.39,157.34,3.1773]
[1727365203552,37.0381,157.47,157.32,1.3453]
[1727365203750,1.2981,157.47,157.39,35.74]
[1727365204252,1.2981,157.47,157.32,1.3453]
[1727365204253,35.74,157.54,157.41,35.74]
[1727365205168,2.657,157.55,157.46,35.74]
[1727365205449,35.74,157.51,157.38,35.74]
[1727365206054,35.74,157.51,157.39,3.1762]
[1727365206253,35.74,157.48,157.35,35.74]
[1727365206456,3.1754,157.44,157.39,3.1761]
[1727365206654,35.74,157.5,157.37,35.74]
[1727365206851,35.74,157.53,157.43,35.74]
[1727365207258,35.74,157.53,157.43,38.9155]
[1727365207555,35.74,157.53,157.4,35.74]
[1727365207856,35.74,157.53,157.38,2.5829]
[1727365208054,35.74,157.5,157.38,2.5829]
[1727365208753,35.74,157.45,157.32,37.0853]
[1727365208954,35.74,157.45,157.32,38.3947]
[1727365208955,1.3463,157.44,157.32,38.3947]
[1727365209558,1.3463,157.44,157.33,3.1774]
[1727365209853,1.3463,157.44,157.32,38.3947]
[1727365210154,3.1764,157.39,157.32,38.3947]
[1727365210555,1.3463,157.44,157.34,35.74]
[1727365210953,35.74,157.43,157.32,2.6547]
[1727365211156,35.74,157.43,157.32,5.8324]
[1727365211157,3.1771,157.36,157.32,5.8324]
[1727365211356,35.74,157.43,157.32,2.6547]
[1727365211753,35.74,157.43,157.32,5.8324]
[1727365212157,3.178,157.31,157.27,3.1786]
[1727365212354,35.74,157.4,157.27,3.2553549]
[1727365212761,35.74,157.4,157.28,3.1785]
[1727365213161,35.74,157.4,157.26,37.0462]
[1727365213359,35.74,157.37,157.24,37.0216]
[1727365213755,1.3463,157.44,157.24,37.0216]
[1727365213756,3.1745,157.49,157.4,3.1759]
[1727365213959,35.74,157.59,157.45,35.74]
[1727365214157,35.74,157.63,157.45,35.74]
[1727365214362,35.74,157.57,157.44,3.22238292]
[1727365214661,1.3094,157.62,157.41,2.6184]
[1727365214662,35.74,157.53,157.41,2.6184]
[1727365215060,35.74,157.59,157.45,35.74]
[1727365215256,35.74,157.59,157.47,35.74]
[1727365215559,1.3094,157.62,157.42,35.74]
[1727365215560,35.74,157.54,157.42,35.74]
[1727365215860,38.94776317,157.54,157.41,2.6184]
[1727365216066,3.1745,157.48,157.41,2.6184]
[1727365216764,35.74,157.52,157.39,35.74]
[1727365217553,35.74,157.52,157.33,2.6566]
[1727365217753,35.74,157.49,157.37,35.74]
[1727365218361,37.0353,157.51,157.39,35.74]
[1727365219363,37.0353,157.51,157.33,2.6566]
[1727365219364,37.0353,157.51,157.37,35.74]
[1727365219764,3.1754,157.44,157.37,35.74]
[1727365219961,3.1754,157.44,157.37,38.95684173]
[1727365220357,1.3339,157.53,157.42,35.74]
[1727365220864,1.3339,157.53,157.42,38.9157]
[1727365220865,3.1744,157.49,157.42,38.9157]
[1727365221163,1.3339,157.53,157.44,35.74]
[1727365221363,35.74,157.47,157.33,5.8339]
[1727365221564,35.74,157.47,157.34,35.74]
[1727365221963,35.74,157.47,157.34,38.9173]
[1727365222160,35.74,157.47,157.34,35.74]
[1727365222366,35.74,157.44,157.33,2.6566]
[1727365222568,3.1767,157.37,157.33,2.6566]
[1727365222867,35.74,157.42,157.33,2.6566]
[1727365223061,35.74,157.42,157.32,1.2525]
[1727365223263,4.51922253,157.47,157.26,35.74]
[1727365223264,35.74,157.39,157.26,35.74]
[1727365223666,35.74,157.39,157.28,35.74]
[1727365223969,35.74,157.35,157.05,7.46768587]
[1727365224156,35.74,157.31,157.18,39.6225]
[1727365224662,35.74,157.31,157.18,3.8825]
[1727365224862,35.74,157.29,157.18,7.05874265]
[1727365225361,35.74,157.32,157.19,35.74]
[1727365225965,3.1787,157.28,157.19,35.74]
[1727365226276,35.74,157.2,157.04,153.0]
[1727365226565,35.74,157.24,157.06,35.74]
[1727365226566,35.74,157.18,157.06,35.74]
[1727365226762,35.74,157.21,157.09,35.74]
[1727365227362,6.3542,157.36,157.12,35.74]
[1727365227566,6.3542,157.36,157.09,35.74]
[1727365227567,35.74,157.22,157.09,35.74]
[1727365227759,35.74,157.22,157.06,38.92704929]
[1727365227959,35.74,157.19,157.06,38.92704929]
[1727365228370,35.74,157.19,157.06,3.18704929]
[1727365228769,35.74,157.16,157.06,3.18704929]
[1727365228970,35.74,157.24,157.05,2.5683]
[1727365228971,35.74,157.14,157.05,2.5683]
[1727365229167,35.74,157.19,157.05,2.5683]
[1727365229862,35.74,157.19,157.07,35.74]
[1727365230372,35.74,157.26,157.12,35.74]
[1727365230670,35.74,157.24,157.12,35.74]
[1727365230969,35.74,157.24,157.12,38.9216]
[1727365231171,35.74,157.24,157.12,38.94221093]
[1727365231472,35.74,157.28,157.17,35.74]
[1727365231664,112.02,157.31,157.17,35.74]
[1727365231867,112.02,157.31,157.19,35.74]
[1727365232071,112.02,157.31,157.2,3.1801]
[1727365232273,35.74,157.28,157.18,2.7337]
[1727365232770,35.74,157.23,157.12,35.74]
[1727365232967,35.74,157.2,157.09,2.6982]
[1727365233172,3.181,157.16,157.1,3.182]
[1727365233360,35.74,157.18,157.07,35.74]
[1727365233565,35.74,157.18,157.05,37.0706]
[1727365233863,35.74,157.2,157.07,35.74]
[1727365234367,38.4433,157.23,157.1,35.74]
[1727365234967,38.4433,157.23,157.12,3.1816]
[1727365235665,35.74,157.26,157.14,3.1813]
[1727365236061,3.1805,157.19,157.14,3.1813]
[1727365236263,35.74,157.26,157.14,3.1813]
[1727365236562,76.3,157.27,157.12,3.1816]
[1727365236563,3.1808,157.17,157.12,3.1816]
[1727365236869,3.1808,157.17,157.1,35.74]
[1727365237261,3.1808,157.17,157.12,3.1817]
[1727365237659,3.1808,157.17,157.1,35.74]
[1727365237867,35.74,157.23,157.1,35.74]
[1727365238064,35.74,157.21,157.07,35.74]
[1727365238259,9.5298,157.38,157.07,35.74]
[1727365238260,76.34,157.51,157.2,35.74]
[1727365238465,35.74,157.36,157.23,35.74]
[1727365238663,1.3055,157.41,157.23,3.14953215]
[1727365238868,35.74,157.33,157.23,3.2236126]
[1727365239070,35.74,157.33,157.21,39.6411]
[1727365239367,35.74,157.39,157.26,35.74]
[1727365239564,35.74,157.39,157.27,3.25031972]
[1727365239765,1.3055,157.41,157.28,35.74]
[1727365239962,37.0455,157.41,157.28,35.74]
[1727365240267,37.0455,157.41,157.28,38.97664822]
[1727365240459,3.1765,157.38,157.29,3.14794244]
[1727365240766,37.0455,157.41,157.29,3.14794244]
[1727365240972,37.0455,157.41,157.28,35.74]
[1727365241171,35.74,157.39,157.26,35.74]
[1727365241366,35.74,157.39,157.21,3.9011]
[1727365241367,35.74,157.34,157.21,42.8209]
[1727365241668,35.74,157.34,157.21,39.6411]
[1727365242567,35.74,157.34,157.25,3.179]
[1727365242871,35.74,157.34,157.24,3.12139505]
[1727365243168,35.74,157.34,157.21,39.6411]
[1727365243373,35.74,157.36,157.24,35.74]
[1727365243570,35.74,157.36,157.24,38.90208126]
[1727365243966,3.1776,157.33,157.27,3.1787]
[1727365244167,35.74,157.36,157.24,38.90208126]
[1727365244373,3.1779,157.31,157.25,3.179]
[1727365244569,35.74,157.32,157.21,3.9011]
[1727365244874,3.1777,157.32,157.26,3.1789]
[1727365245068,1.3055,157.41,157.24,35.74]
[1727365245069,35.74,157.37,157.24,35.74]
[1727365245374,35.74,157.37,157.24,38.85026991]
[1727365245569,35.74,157.37,157.24,35.74]
[1727365245770,35.74,157.32,157.21,3.9011]
[1727365245970,3.1783,157.3,157.23,3.1795]
[1727365246167,35.74,157.32,157.23,3.1795]
[1727365246369,35.74,157.32,157.21,3.9011]
[1727365246770,3.11758072,157.39,157.21,3.9011]
[1727365246974,35.74,157.33,157.21,3.9011]
[1727365247379,35.74,157.33,157.24,3.1793]
[1727365247573,35.74,157.33,157.23,3.15572404]
[1727365247773,3.1781,157.31,157.25,3.1789]
[1727365248077,35.74,157.35,157.24,35.74]
[1727365248276,3.1785,157.29,157.23,3.1794]
[1727365248673,35.74,157.3,157.21,3.9011]
[1727365248977,35.74,157.28,157.21,3.9011]
[1727365249170,35.74,157.3,157.21,3.9011]
[1727365249872,3.1791,157.26,157.21,7.0809]
[1727365250070,35.74,157.3,157.21,2.5369]
[1727365250374,3.1792,157.25,157.21,5.7168]
[1727365250580,35.74,157.3,157.21,2.5369]
[1727365250881,35.74,157.32,157.23,3.1794]
[1727365251368,3.1786,157.28,157.23,3.1794]
[1727365251574,35.74,157.32,157.21,2.5369]
[1727365251774,35.74,157.32,157.21,38.2769]
[1727365251978,35.74,157.32,157.25,3.179]
[1727365252178,35.74,157.32,157.24,3.11889015]